bitfinex/quotes_SOLUSD_20260119
["timestamp","ask_amount","ask_price","bid_price","bid_amount"]
[1768782572516,16.3,134.14,134.05,4.10269545]
[1768782572723,27.7477789,134.14,134.05,4.10269545]
[1768782573221,20.99686213,134.18,134.09,4.10269545]
[1768782573523,15.65277357,134.18,134.09,4.10269545]
[1768782573899,16.3,134.17,134.09,4.10269545]
[1768782574099,16.3,134.17,134.1,7.45712155]
[1768782574519,4.20499467,134.21,134.11,4.10269545]
[1768782574822,11.4477789,134.19,134.11,4.10269545]
[1768782575200,16.3,134.18,134.11,4.10269545]
[1768782575402,16.3,134.17,134.11,4.10269545]
[1768782575618,11.4477789,134.16,134.1,7.45712155]
[1768782576028,42.37265384,134.55,134.19,4.10269545]
[1768782576227,42.37265384,134.55,134.33,11.4477789]
[1768782576228,53.56380646,134.54,134.33,11.4477789]
[1768782576524,11.4477789,134.42,134.33,26.05518922]
[1768782576722,16.3,134.41,134.38,4.10269545]
[1768782577021,16.3,134.41,134.33,26.05518922]
[1768782577211,11.4477789,134.44,134.33,30.15788467]
[1768782577410,16.3,134.43,134.34,15.55047435]
[1768782577923,11.4477789,134.46,134.36,11.4477789]
[1768782578224,16.3,134.45,134.38,7.44158356]
[1768782578431,15.62999326,134.47,134.38,7.44158356]
[1768782578602,16.28,134.46,134.39,15.75180054]
[1768782578808,4.18221436,134.49,134.39,4.30402164]
[1768782579017,16.28,134.48,134.39,15.75180054]
[1768782579215,16.28,134.48,134.4,4.30402164]
[1768782579423,16.28,134.47,134.41,11.4477789]
[1768782579623,16.28,134.47,134.4,4.30402164]
[1768782579817,16.28,134.46,134.4,4.30402164]
[1768782580228,35.16499282,134.46,134.38,7.44158356]
[1768782580423,4.18221436,134.45,134.35,30.05492616]
[1768782580725,5.34408856,134.42,134.33,4.30402164]
[1768782580909,18.59051558,134.48,134.31,37.22485809]
[1768782580910,4.18221436,134.55,134.37,11.74614034]
[1768782581112,11.4477789,134.44,134.37,7.4421187]
[1768782581424,79.55903354,134.54,134.34,22.9131942]
[1768782581425,31.90999326,134.43,134.34,22.9131942]
[1768782581845,31.90999326,134.43,134.37,7.44205508]
[1768782582219,7.43618188,134.48,134.37,18.60534345]
[1768782582524,11.4477789,134.45,134.37,18.60534345]
[1768782582731,11.4477789,134.43,134.36,4.30402164]
[1768782582917,16.79186746,134.44,134.36,4.30402164]
[1768782583224,16.28,134.43,134.36,4.30402164]
[1768782583427,5.34408856,134.44,134.36,4.30402164]
[1768782583600,15.62999326,134.46,134.38,4.30402164]
[1768782583804,16.28,134.45,134.38,4.30402164]
[1768782584021,15.62999326,134.44,134.35,30.35538002]
[1768782584224,5.34408856,134.46,134.38,4.30402164]
[1768782584424,16.28,134.43,134.39,4.30402164]
[1768782584616,16.26,134.42,134.39,4.30402164]
[1768782584816,16.26,134.41,134.38,11.4477789]
[1768782585217,20.44221436,134.43,134.37,26.04748083]
[1768782585523,4.18221436,134.4,134.36,7.44266493]
[1768782586035,4.18221436,134.4,134.31,48.67263699]
[1768782586036,4.18221436,134.36,134.28,7.44659964]
[1768782586209,11.4477789,134.34,134.19,63.34302108]
[1768782586405,11.4477789,134.3,134.21,11.4477789]
[1768782586745,11.4477789,134.28,134.19,26.08242044]
[1768782586941,11.4477789,134.26,134.19,7.45212012]
[1768782587229,11.4477789,134.25,134.19,7.45212012]
[1768782587411,11.4477789,134.23,134.16,7.45342314]
[1768782588006,11.4477789,134.21,134.14,7.45465248]
[1768782588223,4.18221436,134.23,134.12,18.63876044]
[1768782588407,11.63266883,134.22,134.12,37.54254888]
[1768782588602,11.4477789,134.19,134.12,7.45600954]
[1768782588806,4.18221436,134.23,134.15,11.4477789]
[1768782589027,11.4477789,134.19,134.11,7.45655499]
[1768782589206,4.18221436,134.2,134.11,7.45655499]
[1768782589603,5.34408856,134.18,134.1,7.45705862]
[1768782589823,5.34408856,134.18,134.06,16.22]
[1768782589824,11.4477789,134.17,134.09,11.4477789]
[1768782590413,7.45267551,134.18,134.1,7.45698407]
[1768782590743,23.08266877,134.18,134.1,7.45698407]
[1768782591213,4.18221436,134.22,134.13,11.4477789]
[1768782591418,4.18221436,134.21,134.11,11.4477789]
[1768782591733,15.62999326,134.17,134.07,11.4477789]
[1768782592030,4.18221436,134.17,134.06,34.86722289]
[1768782592218,11.4477789,134.18,134.06,34.86722289]
[1768782592420,7.45323097,134.17,134.08,15.62999326]
[1768782592814,11.4477789,134.16,134.07,7.45879018]
[1768782593021,26.0863084,134.17,134.06,11.4477789]
[1768782593230,11.4477789,134.15,134.06,23.0889348]
[1768782593433,11.4477789,134.13,134.04,22.91354475]
[1768782593729,11.4477789,134.11,134.04,30.37385666]
[1768782593927,11.4477789,134.11,134.04,22.91354475]
[1768782594129,11.4477789,134.12,134.04,22.91354475]
[1768782594311,7.4565655,134.11,134.04,41.82161683]
[1768782594718,11.4477789,134.09,134.04,22.91354475]
[1768782595748,11.4477789,134.06,134.0,4.18221436]
[1768782595914,11.4477789,134.06,133.98,7.4635746]
[1768782596115,4.19237735,134.09,133.98,7.4635746]
[1768782596116,4.19237735,134.09,134.01,11.4477789]
[1768782596414,7.45823389,134.08,134.01,15.62999326]
[1768782596617,11.4477789,134.07,134.01,4.18221436]
[1768782596848,11.4477789,134.07,133.99,18.91100737]
[1768782597030,26.10381861,134.08,134.01,7.4620082]
[1768782597230,11.4477789,134.06,133.98,4.18221436]
[1768782597533,11.4477789,134.04,133.97,7.46428101]
[1768782597718,11.4477789,134.04,133.96,7.4649121]
[1768782597915,11.4477789,134.02,133.95,11.6476405]
[1768782598328,18.90990355,134.02,133.95,11.6476405]
[1768782598832,18.90990355,134.02,133.95,4.18221436]
[1768782599020,7.46212465,134.02,133.94,18.91028874]
[1768782599341,7.46109851,134.03,133.95,11.64758175]
[1768782599637,7.46109851,134.03,133.96,11.44433289]
[1768782599938,16.78842145,134.07,133.98,15.62654725]
[1768782600114,4.19237735,134.06,133.95,30.31126222]
[1768782600314,7.46101619,134.03,133.95,41.75559511]
[1768782600518,4.19237735,134.02,133.92,22.84968533]
[1768782600724,7.46101619,134.03,133.95,7.46543081]
[1768782600936,7.46101619,134.03,133.95,18.9097637]
[1768782600937,18.90534908,134.03,133.95,18.9097637]
[1768782601127,26.11355666,134.03,133.95,11.44433289]
[1768782601317,18.64949524,134.06,133.98,15.62654725]
[1768782601531,4.19237735,134.05,133.96,11.44433289]
[1768782601732,11.44433289,134.02,133.93,11.64829111]
[1768782601936,4.19237735,134.04,133.95,18.90970341]
[1768782602243,4.19237735,134.04,133.96,11.44433289]
[1768782602444,4.19237735,134.01,133.91,39.0912688]
[1768782602741,4.19237735,133.95,133.85,4.18221436]
[1768782602942,4.19237735,133.98,133.9,7.46798622]
[1768782603116,4.19237735,133.98,133.81,53.77673624]
[1768782603117,11.44433289,133.94,133.84,4.18221436]
[1768782603322,5.34408856,133.93,133.81,4.18221436]
[1768782603647,11.44433289,133.9,133.78,4.18221436]
[1768782603823,11.44433289,133.84,133.77,7.47508758]
[1768782604024,5.34408856,133.99,133.77,4.18221436]
[1768782604329,26.14281446,133.88,133.78,18.68612312]
[1768782604521,11.44433289,133.87,133.78,23.10150613]
[1768782604723,11.44433289,133.87,133.71,60.17042157]
[1768782604724,42.42281446,133.88,133.75,4.18221436]
[1768782604942,11.44433289,133.83,133.75,7.47659876]
[1768782605128,11.44433289,133.81,133.71,23.10147666]
[1768782605326,11.44433289,133.81,133.71,45.98053225]
[1768782605525,4.19237735,133.78,133.71,23.10147666]
[1768782605730,11.44433289,133.75,133.71,23.10147666]
[1768782605937,4.19237735,133.77,133.71,23.10147666]
[1768782606140,11.44433289,133.74,133.65,4.18221436]
[1768782606339,18.92295519,133.72,133.64,7.68278079]
[1768782606520,4.19237735,133.67,133.64,0.2]
[1768782606724,20.47237735,133.71,133.64,0.2]
[1768782607024,4.19237735,133.69,133.64,0.2]
[1768782607222,7.4786223,133.72,133.64,23.30907974]
[1768782607547,7.4786223,133.72,133.64,7.68253249]
[1768782607548,11.44433289,133.72,133.64,7.68253249]
[1768782607720,4.19237735,133.71,133.64,0.2]
[1768782608150,11.44433289,133.68,133.6,16.26]
[1768782608446,15.63671024,133.66,133.57,11.66891868]
[1768782608632,26.18388568,133.67,133.6,11.44433289]
[1768782608948,26.18388568,133.67,133.59,7.48557988]
[1768782609135,30.37626303,133.67,133.59,7.48557988]
[1768782609443,7.48111019,133.67,133.58,11.66791206]
[1768782609654,4.19237735,133.65,133.58,11.44433289]
[1768782609946,4.19237735,133.64,133.56,4.18221436]
[1768782610122,4.19237735,133.64,133.56,15.62654725]
[1768782610448,4.19237735,133.64,133.49,38.73362628]
[1768782610449,11.44433289,133.57,133.46,7.49248345]
[1768782610743,4.19237735,133.57,133.47,11.44433289]
[1768782610946,4.19237735,133.57,133.51,11.44433289]
[1768782611162,30.39194317,133.59,133.49,11.67338505]
[1768782611326,4.19237735,133.56,133.46,11.67455015]
[1768782611530,4.19237735,133.56,133.47,7.4922547]
[1768782611728,15.63671024,133.56,133.48,11.44433289]
[1768782612025,4.19237735,133.54,133.44,4.18221436]
[1768782612332,4.19237735,133.55,133.46,4.18221436]
[1768782612532,5.34408856,133.56,133.46,4.18221436]
[1768782612533,4.19237735,133.53,133.46,4.18221436]
[1768782612733,26.20937546,133.54,133.46,4.18221436]
[1768782612933,4.19237735,133.52,133.46,4.18221436]
[1768782613133,11.44433289,133.51,133.46,4.18221436]
[1768782613446,11.44433289,133.5,133.46,4.18221436]
[1768782613646,4.19237735,133.52,133.46,4.18221436]
[1768782613942,7.48839299,133.54,133.46,4.18221436]
[1768782614147,23.12447356,133.56,133.46,11.67500202]
[1768782614451,11.67740729,133.6,133.52,11.44433289]
[1768782614651,11.44433289,133.57,133.46,9.52630292]
[1768782614848,15.63671024,133.51,133.46,4.18221436]
[1768782615053,4.19237735,133.5,133.39,16.28]
[1768782615244,4.19237735,133.48,133.39,7.49669014]
[1768782615449,4.19237735,133.45,133.37,11.44433289]
[1768782615749,4.19237735,133.49,133.41,11.44433289]
[1768782616060,4.19237735,133.45,133.38,34.73374147]
[1768782616359,4.19237735,133.44,133.38,23.28940858]
[1768782616543,7.49456643,133.43,133.38,23.28940858]
[1768782616749,7.46223671,133.43,133.38,23.28940858]
[1768782617049,11.68639114,133.44,133.38,34.73374147]
[1768782617230,11.68639114,133.44,133.38,23.28940858]
[1768782617431,4.19237735,133.42,133.38,23.28940858]
[1768782617851,26.22902578,133.44,133.38,23.28940858]
[1768782617852,7.49401379,133.44,133.38,23.28940858]
[1768782618052,11.44433289,133.4,133.31,0.2]
[1768782618353,4.19237735,133.4,133.31,0.2]
[1768782618544,7.49681385,133.39,133.32,11.44433289]
[1768782618858,4.19237735,133.43,133.32,26.25256406]
[1768782619038,4.19237735,133.42,133.34,11.44433289]
[1768782619382,11.44433289,133.4,133.31,7.70111341]
[1768782619653,11.44433289,133.38,133.31,0.2]
[1768782619853,11.44433289,133.36,133.31,0.2]
[1768782620039,5.34408856,133.4,133.31,0.2]
[1768782620437,11.44433289,133.37,133.31,0.2]
[1768782620633,37.46336088,133.47,133.31,0.2]
[1768782620634,7.49681385,133.39,133.31,19.14556381]
[1768782620854,26.23884848,133.39,133.31,0.2]
[1768782621055,11.44433289,133.35,133.31,0.2]
[1768782621356,4.19237735,133.38,133.31,0.2]
[1768782621655,17.03237131,133.41,133.31,0.2]
[1768782621872,11.68828275,133.41,133.32,7.56075006]
[1768782622152,7.4959054,133.41,133.32,7.50075007]
[1768782622365,4.49385352,133.42,133.32,42.55262525]
[1768782622534,11.44433289,133.37,133.31,0.2]
[1768782622734,15.93818641,133.36,133.31,0.2]
[1768782623164,4.49385352,133.35,133.31,0.2]
[1768782623569,12.8408742,133.4,133.32,11.44433289]
[1768782623866,11.44433289,133.37,133.31,0.2]
[1768782624052,26.23741532,133.4,133.31,0.25999999]
[1768782624368,4.49385352,133.35,133.31,0.2]
[1768782624563,11.99317202,133.35,133.31,0.2]
[1768782624946,30.74082856,133.35,133.27,16.32]
[1768782625146,11.99317202,133.35,133.27,16.32]
[1768782625653,11.99317202,133.35,133.29,11.44433289]
[1768782625870,7.49853438,133.36,133.3,11.44433289]
[1768782626455,7.49853438,133.36,133.28,0.05999999]
[1768782626656,4.49385352,133.35,133.27,27.76433289]
[1768782626860,11.44433289,133.34,133.27,27.76433289]
[1768782627056,4.49385352,133.35,133.27,27.76433289]
[1768782627388,7.49853438,133.36,133.3,11.44433289]
[1768782627572,7.49802267,133.37,133.33,11.44433289]
[1768782627868,7.49746403,133.38,133.33,11.44433289]
[1768782628068,4.49385352,133.44,133.37,11.44433289]
[1768782628243,4.49385352,133.43,133.32,0.05999999]
[1768782628448,11.44433289,133.42,133.35,11.44433289]
[1768782628758,7.49568997,133.41,133.36,11.44433289]
[1768782628960,7.49568997,133.41,133.38,11.44433289]
[1768782629160,4.49385352,133.44,133.35,7.49877719]
[1768782629365,4.49385352,133.4,133.34,16.32]
[1768782629670,4.49385352,133.4,133.34,27.76433289]
[1768782630148,4.49385352,133.4,133.34,16.32]
[1768782630347,11.44433289,133.39,133.34,16.32]
[1768782630551,7.49793806,133.37,133.29,0.05999999]
[1768782630768,11.99179158,133.37,133.29,0.05999999]
[1768782630977,7.49793806,133.37,133.33,11.44433289]
[1768782631166,7.49681385,133.39,133.34,11.44433289]
[1768782631365,7.49681385,133.39,133.31,0.05999999]
[1768782631366,18.73626344,133.44,133.38,11.44433289]
[1768782631555,18.73626344,133.44,133.39,11.44433289]
[1768782631751,18.73240535,133.46,133.39,0.05999999]
[1768782631971,7.49175906,133.48,133.42,11.44433289]
[1768782632165,7.49175906,133.48,133.39,0.05999999]
[1768782632366,11.44433289,133.45,133.36,0.05999999]
[1768782632552,4.49385352,133.42,133.33,21.72408855]
[1768782632866,37.6792478,133.41,133.34,11.44433289]
[1768782633053,37.6792478,133.41,133.28,16.32]
[1768782633054,11.44433289,133.38,133.29,0.05999999]
[1768782633258,4.49385352,133.4,133.32,11.44433289]
[1768782633450,26.23491491,133.41,133.35,11.44433289]
[1768782633868,7.49568997,133.41,133.37,11.44433289]
[1768782634077,7.49568997,133.41,133.35,0.05999999]
[1768782634370,7.49568997,133.41,133.33,7.5001068]
[1768782634552,7.43568998,133.41,133.38,11.44433289]
[1768782634752,4.49385352,133.42,133.32,5.34408856]
[1768782634953,26.23232788,133.43,133.33,5.34408856]
[1768782635170,11.44433289,133.4,133.31,18.75295306]
[1768782635370,15.93818641,133.4,133.28,16.32]
[1768782635571,11.44433289,133.39,133.33,11.44433289]
[1768782636071,4.49385352,133.36,133.28,23.82269501]
[1768782636268,11.44433289,133.37,133.31,11.44433289]
[1768782636470,11.44433289,133.37,133.23,37.30368172]
[1768782636471,11.44433289,133.34,133.24,18.76292874]
[1768782636668,11.44433289,133.33,133.27,11.44433289]
[1768782636869,7.49962501,133.34,133.29,11.44433289]
[1768782637065,11.89212834,133.34,133.25,5.34408856]
[1768782637265,4.39250333,133.33,133.21,16.32]
[1768782637465,4.39250333,133.32,133.26,11.44433289]
[1768782637669,4.39250333,133.32,133.21,16.32]
[1768782637976,11.44433289,133.31,133.25,11.44433289]
[1768782638154,15.83683622,133.32,133.26,11.44433289]
[1768782638356,4.39250333,133.32,133.27,11.44433289]
[1768782638672,15.83683622,133.32,133.26,11.44433289]
[1768782638975,18.74649707,133.36,133.31,11.44433289]
[1768782639175,7.49906261,133.35,133.32,0.83518974]
[1768782639368,7.49793806,133.37,133.33,11.44433289]
[1768782639565,7.49793806,133.37,133.32,11.44433289]
[1768782640065,11.44433289,133.36,133.3,11.44433289]
[1768782640375,4.39250333,133.36,133.26,0.75041272]
[1768782640677,11.44433289,133.32,133.26,11.44433289]
[1768782640865,11.44433289,133.33,133.27,11.44433289]
[1768782641069,4.39250333,133.37,133.26,7.5040108]
[1768782641366,23.33477428,133.37,133.26,7.5040108]
[1768782641568,23.33477428,133.37,133.31,11.44433289]
[1768782641768,42.82538691,133.4,133.36,11.44433289]
[1768782641769,4.39250333,133.4,133.36,11.44433289]
[1768782642076,18.93946105,133.42,133.29,5.34408856]
[1768782642263,7.49512816,133.42,133.29,16.67781597]
[1768782642467,11.44433289,133.45,133.39,11.44433289]
[1768782642651,4.39250333,133.44,133.34,16.34]
[1768782642855,11.44433289,133.37,133.22,37.89804268]
[1768782643054,4.39250333,133.38,133.28,7.50292053]
[1768782643292,4.39250333,133.41,133.32,11.44433289]
[1768782643464,11.44433289,133.37,133.3,18.94606979]
[1768782643660,37.77592184,133.48,133.3,18.94606979]
[1768782643661,4.39250333,134.04,133.65,3.90099025]
[1768782643971,11.44433289,133.82,133.7,11.44433289]
[1768782644157,16.36,133.81,133.68,11.44433289]
[1768782644358,16.36,133.81,133.65,3.90099025]
[1768782644558,16.36,133.81,133.66,1.08130892]
[1768782644754,5.6494191,134.04,133.69,1.08130892]
[1768782644964,11.44433289,134.08,133.7,1.08130892]
[1768782645166,16.36,134.05,133.7,1.08130892]
[1768782645362,22.10938106,134.05,133.7,1.08130892]
[1768782645565,11.44433289,133.93,133.79,11.44433289]
[1768782645776,4.39250333,133.91,133.79,11.44433289]
[1768782645976,4.39250333,133.87,133.69,1.08130892]
[1768782646163,4.39250333,133.87,133.78,11.44433289]
[1768782646369,4.39250333,133.86,133.8,11.44433289]
[1768782646563,4.39250333,133.94,133.85,11.44433289]
[1768782646878,4.39250333,133.92,133.86,7.47033524]
[1768782647083,16.36,133.91,133.86,7.47033524]
[1768782647290,4.39250333,133.95,133.87,11.44433289]
[1768782647470,4.39250333,133.93,133.87,11.44433289]
[1768782647667,4.39250333,133.93,133.82,11.44433289]
[1768782647862,4.39250333,133.91,133.83,7.47172521]
[1768782648079,4.39250333,133.88,133.79,7.47395103]
[1768782648379,4.39250333,133.88,133.84,7.47148259]
[1768782648684,4.39250333,133.88,133.74,37.78546316]
[1768782648685,4.39250333,133.86,133.78,11.44433289]
[1768782648871,4.39250333,133.84,133.76,7.4756273]
[1768782649185,4.39250333,133.82,133.76,7.4756273]
[1768782649406,4.39250333,133.82,133.74,30.13685613]
[1768782649407,4.39250333,133.82,133.74,7.47672156]
[1768782649768,4.39250333,133.8,133.75,7.47652358]
[1768782649969,4.39250333,133.79,133.71,30.14095232]
[1768782650365,4.39250333,133.78,133.71,30.14095232]
[1768782650764,20.73250333,133.77,133.67,11.44433289]
[1768782650992,20.73250333,133.77,133.65,30.14896387]
[1768782650993,11.44433289,133.76,133.65,30.14896387]
[1768782651166,11.86825006,133.77,133.65,30.14896387]
[1768782651366,27.78433289,133.76,133.65,18.92613186]
[1768782651582,16.34,133.76,133.63,11.44433289]
[1768782651892,11.44433289,133.71,133.62,7.48384587]
[1768782652067,16.34,133.76,133.63,7.48327545]
[1768782652265,11.44433289,133.71,133.6,11.44433289]
[1768782652583,4.3075035,133.7,133.62,7.48386388]
[1768782652786,4.3075035,133.68,133.6,18.92919241]
[1768782652984,4.3075035,133.66,133.6,7.48485952]
[1768782653690,4.3075035,133.64,133.54,11.44433289]
[1768782653982,16.34,133.63,133.58,7.48579983]
[1768782654191,4.3075035,133.62,133.51,5.34408856]
[1768782654383,4.3075035,133.62,133.56,7.48717457]
[1768782654886,4.3075035,133.62,133.51,11.44433289]
[1768782654887,4.3075035,133.6,133.51,11.44433289]
[1768782655384,4.3075035,133.59,133.49,18.72787124]
[1768782655887,4.3075035,133.59,133.49,30.17220413]
[1768782656084,4.3075035,133.59,133.49,11.44433289]
[1768782656085,4.3075035,133.58,133.49,11.44433289]
[1768782656589,4.3075035,133.58,133.47,18.93665326]
[1768782656786,4.3075035,133.56,133.47,18.93665326]
[1768782656972,4.3075035,133.54,133.47,7.49232037]
[1768782657293,4.3075035,133.54,133.44,30.17830765]
[1768782657501,4.3075035,133.54,133.44,7.49366068]
[1768782657800,4.3075035,133.53,133.44,7.49366068]
[1768782657970,4.3075035,133.51,133.45,7.49342833]
[1768782658170,16.34,133.5,133.43,18.93834172]
[1768782658391,4.3075035,133.49,133.43,7.49400883]
[1768782658889,4.3075035,133.49,133.42,7.49512816]
[1768782659079,4.3075035,133.48,133.41,18.94001479]
[1768782659586,4.3075035,133.46,133.39,11.44433289]
[1768782659970,16.34,133.45,133.39,11.44433289]
[1768782660166,4.3075035,133.46,133.38,30.78624748]
[1768782660397,4.3075035,133.44,133.38,23.28940858]
[1768782660688,4.3075035,133.43,133.38,10.678221]
[1768782660895,5.34408856,133.46,133.38,4.47108592]
[1768782661107,5.34408856,133.47,133.4,4.47108592]
[1768782661308,5.34408856,133.47,133.4,16.01398449]
[1768782661474,5.34408856,133.41,133.34,7.49962501]
[1768782661807,16.34,133.4,133.34,4.47108592]
[1768782661976,15.80732703,133.41,133.33,7.50010841]
[1768782662171,11.54289857,133.39,133.3,4.47108592]
[1768782662476,16.34,133.38,133.31,34.76677885]
[1768782662800,20.60442846,133.38,133.29,4.47108592]
[1768782662999,9.60851702,133.35,133.26,11.54289857]
[1768782663201,4.26442846,133.35,133.26,11.54289857]
[1768782663496,11.54289857,133.34,133.28,7.50284902]
[1768782663706,11.54289857,133.31,133.22,16.01398449]
[1768782664004,11.54289857,133.31,133.24,18.76251084]
[1768782664173,16.88698713,133.33,133.27,7.50345419]
[1768782664374,22.72561283,134.78,133.32,23.08579714]
[1768782664594,37.77732496,133.91,133.63,3.90939072]
[1768782664802,16.36,133.9,133.47,37.64507702]
[1768782664986,37.14953915,133.88,133.6,4.47108592]
[1768782665171,5.3619025,133.91,133.63,16.01398449]
[1768782665172,11.54289857,133.76,133.63,16.01398449]
[1768782665377,32.54,133.75,133.65,11.54289857]
[1768782665580,16.18,133.75,133.65,11.54289857]
[1768782665885,16.36,133.74,133.65,11.54289857]
[1768782666196,16.36,133.73,133.67,11.54289857]
[1768782666375,4.3075035,133.74,133.67,11.54289857]
[1768782666576,4.3075035,133.72,133.57,4.47108592]
[1768782666791,4.3075035,133.72,133.63,7.48322092]
[1768782666990,16.36,133.71,133.65,11.54289857]
[1768782667501,20.4875035,133.75,133.65,11.54289857]
[1768782667702,16.36,133.74,133.65,11.54289857]
[1768782667883,20.4875035,133.75,133.65,11.54289857]
[1768782668091,4.3075035,133.73,133.64,7.48239541]
[1768782668287,9.65159206,133.7,133.61,4.47108592]
[1768782668479,9.65159206,133.7,133.61,34.72474594]
[1768782669205,4.3075035,133.67,133.58,23.18563592]
[1768782669502,11.54289857,133.68,133.59,11.54289857]
[1768782669503,16.36,133.66,133.59,11.54289857]
[1768782669896,4.3075035,133.68,133.61,11.54289857]
[1768782670100,4.3075035,133.71,133.62,7.48390959]
[1768782670280,4.3075035,133.71,133.63,11.54289857]
[1768782670482,16.16,133.7,133.65,11.54289857]
[1768782670784,16.34,133.69,133.65,11.54289857]
[1768782671313,4.3075035,133.68,133.62,7.48390959]
[1768782671614,16.34,133.67,133.62,4.47108592]
[1768782671789,16.34,133.67,133.61,7.48445583]
[1768782672115,16.16,133.7,133.62,16.01398449]
[1768782672293,0.2,176.43,133.62,4.47108592]
[1768782672294,4.3075035,133.89,133.62,4.47108592]
[1768782672605,15.85040207,133.74,133.62,4.47108592]
[1768782672899,4.3075035,133.8,133.71,11.54289857]
[1768782673100,4.3075035,133.8,133.73,11.54289857]
[1768782673279,4.3075035,133.79,133.64,42.80605401]
[1768782673485,4.3075035,133.76,133.67,11.54289857]
[1768782673788,1.2,176.32,133.62,16.01398449]
[1768782673789,36.10946435,134.1,133.62,16.01398449]
[1768782673989,15.99587433,134.11,133.91,37.55190797]
[1768782674194,15.99587433,134.11,133.92,11.54289857]
[1768782674195,16.34,134.1,133.92,11.54289857]
[1768782674388,16.34,134.1,134.04,11.54289857]
[1768782674594,16.34,134.1,134.02,11.54289857]
[1768782674881,0.0751,134.17,134.09,11.54289857]
[1768782675205,16.34,134.16,134.09,11.54289857]
[1768782675382,1e-08,134.17,134.13,11.54289857]
[1768782675700,86.16888594,134.74,134.09,4.3075035]
[1768782675701,16.34,134.16,134.14,11.54289857]
[1768782675901,37.16642134,134.35,134.14,11.54289857]
[1768782675902,4.3075035,134.26,134.14,11.54289857]
[1768782676107,4.3075035,134.29,134.21,11.54289857]
[1768782676280,16.34,134.28,134.21,11.54289857]
[1768782676482,16.34,134.28,134.15,26.09019753]
[1768782676483,4.3075035,134.32,134.23,11.54289857]
[1768782676681,4.3075035,134.32,134.15,64.05457781]
[1768782676682,4.3075035,134.32,134.22,4.3075035]
[1768782676912,16.34,134.31,134.22,4.3075035]
[1768782677205,16.34,134.31,134.19,4.3075035]
[1768782677500,4.3075035,134.32,134.25,11.54289857]
[1768782677704,15.85040207,134.3,134.2,11.54289857]
[1768782677921,11.54289857,134.26,134.16,11.54289857]
[1768782678080,21.19449063,134.26,134.17,26.0863084]
[1768782678284,9.65159206,134.28,134.18,11.54289857]
[1768782678586,9.65159206,134.28,134.15,37.271501]
[1768782678587,4.3075035,134.22,134.15,7.45405256]
[1768782678785,11.54289857,134.21,134.12,11.54289857]
[1768782678985,4.3075035,134.18,134.06,4.3075035]
[1768782679180,11.54289857,134.11,134.03,4.3075035]
[1768782679380,4.3075035,134.13,134.02,11.54289857]
[1768782679601,11.54289857,134.1,134.03,11.54289857]
[1768782679803,11.54289857,134.1,134.02,11.54289857]
[1768782680086,11.54289857,134.08,134.01,26.11745391]
[1768782680288,11.54289857,134.09,134.02,11.54289857]
[1768782680501,4.3075035,134.12,134.03,11.54289857]
[1768782680502,20.6275035,134.12,134.03,11.54289857]
[1768782680713,11.54289857,134.07,134.01,26.11745391]
[1768782681090,4.3075035,134.1,134.02,11.54289857]
[1768782681287,16.32,134.12,134.03,11.54289857]
[1768782681600,16.32,134.12,134.01,26.11745391]
[1768782681601,11.54289857,134.07,134.01,26.11745391]
[1768782681797,4.3075035,134.11,134.01,26.11745391]
[1768782681996,11.54289857,134.07,134.01,26.11745391]
[1768782682403,11.54289857,134.05,134.01,26.11745391]
[1768782682603,11.54289857,134.02,133.92,41.64048369]
[1768782682789,11.54289857,133.99,133.97,7.46394206]
[1768782682988,11.54289857,133.98,133.91,18.66840727]
[1768782683187,11.54289857,133.96,133.92,7.46714456]
[1768782683385,20.41324218,134.0,133.92,26.13500596]
[1768782683593,4.11324218,133.99,133.92,26.13500596]
[1768782683992,11.54289857,133.98,133.89,26.14008958]
[1768782684185,11.54289857,133.96,133.89,26.14008958]
[1768782684400,11.54289857,133.97,133.89,26.14008958]
[1768782684608,4.11324218,134.13,133.9,4.3075035]
[1768782684812,4.11324218,134.11,133.96,0.352017]
[1768782684992,4.11324218,134.05,133.97,11.54289857]
[1768782685498,11.54289857,134.07,133.99,11.54289857]
[1768782685708,4.11324218,134.19,134.07,4.3075035]
[1768782685897,15.65614075,134.18,134.07,4.3075035]
[1768782686098,4.11324218,134.18,134.11,11.54289857]
[1768782686306,4.11324218,134.16,134.04,4.3075035]
[1768782686616,4.11324218,134.16,134.07,19.00136938]
[1768782686813,4.11324218,134.2,134.12,11.54289857]
[1768782687190,11.54289857,134.18,134.09,11.76503101]
[1768782687393,4.11324218,134.15,134.07,0.74587901]
[1768782687627,4.11324218,134.15,134.08,7.45796017]
[1768782687909,5.34408856,134.12,134.05,7.45982042]
[1768782688125,4.11324218,134.11,134.05,7.45982042]
[1768782688319,4.11324218,134.11,134.05,19.00271899]
[1768782688614,5.34408856,134.14,134.01,4.3075035]
[1768782688615,4.11324218,134.12,134.04,19.00321197]
[1768782688814,4.11324218,134.12,134.01,4.3075035]
[1768782688815,4.11324218,134.09,134.02,11.54289857]